[Event "Late-Titled-Tuesday-Blitz-April-02-2024"]
[Site "Chess.com"]
[Date "2024.04.02"]
[Round "5"]
[White "TheMagician"]
[Black "Caracal3000"]
[Result "0-1"]
[WhiteElo "2306"]
[BlackElo "2546"]
[TimeControl "180+1"]
[EndTime "14:52:29 PDT"]
[Termination "Caracal3000 won on time"]

1. e4 {[%clk 0:03:00.9]} 1... e5 {[%clk 0:02:59.4]} 2. Nf3 {[%clk 0:03:00.6]}
2... Nc6 {[%clk 0:02:59.9]} 3. Bb5 {[%clk 0:03:00.6]} 3... a6 {[%clk 0:03:00.2]}
4. Ba4 {[%clk 0:03:00.9]} 4... Nf6 {[%clk 0:03:00.2]} 5. O-O {[%clk 0:03:00.4]}
5... b5 {[%clk 0:03:00.8]} 6. Bb3 {[%clk 0:03:00.4]} 6... Bc5 {[%clk 0:03:01.6]}
7. Re1 {[%clk 0:02:57]} 7... d6 {[%clk 0:02:59]} 8. c3 {[%clk 0:02:57.3]} 8...
O-O {[%clk 0:02:55.3]} 9. h3 {[%clk 0:02:57.2]} 9... Bb6 {[%clk 0:02:52]} 10. d3
{[%clk 0:02:48.5]} 10... h6 {[%clk 0:02:52.1]} 11. Nbd2 {[%clk 0:02:45.8]} 11...
Ne7 {[%clk 0:02:49.2]} 12. a4 {[%clk 0:02:40.2]} 12... Rb8 {[%clk 0:02:45.6]}
13. axb5 {[%clk 0:02:25.6]} 13... axb5 {[%clk 0:02:46.5]} 14. Nf1 {[%clk
0:02:16.3]} 14... Ng6 {[%clk 0:02:45.2]} 15. Ne3 {[%clk 0:02:05.4]} 15... Re8
{[%clk 0:02:36.9]} 16. Nd5 {[%clk 0:02:04.8]} 16... Nxd5 {[%clk 0:02:36.3]} 17.
Bxd5 {[%clk 0:02:04.9]} 17... Be6 {[%clk 0:02:35.7]} 18. Bxe6 {[%clk 0:01:40.1]}
18... Rxe6 {[%clk 0:02:36.6]} 19. Be3 {[%clk 0:01:39.9]} 19... Bxe3 {[%clk
0:02:35.8]} 20. fxe3 {[%clk 0:01:40]} 20... Re8 {[%clk 0:02:20.9]} 21. Rf1
{[%clk 0:01:29.2]} 21... b4 {[%clk 0:02:19.2]} 22. c4 {[%clk 0:01:23.4]} 22...
c5 {[%clk 0:02:12.2]} 23. b3 {[%clk 0:01:10.6]} 23... Ra8 {[%clk 0:02:11.5]} 24.
Kh2 {[%clk 0:01:07.1]} 24... Qb6 {[%clk 0:02:06.8]} 25. Qe2 {[%clk 0:00:52.4]}
25... Qb7 {[%clk 0:02:06.3]} 26. Rab1 {[%clk 0:00:51.5]} 26... Ra3 {[%clk
0:02:03.6]} 27. Rb2 {[%clk 0:00:50.5]} 27... Rea8 {[%clk 0:02:02.2]} 28. h4
{[%clk 0:00:46.2]} 28... Qe7 {[%clk 0:01:44]} 29. Qf2 {[%clk 0:00:40.7]} 29...
Ra1 {[%clk 0:01:40.2]} 30. Rxa1 {[%clk 0:00:24.3]} 30... Rxa1 {[%clk 0:01:41.1]}
31. h5 {[%clk 0:00:20.5]} 31... Nf8 {[%clk 0:01:41.3]} 32. Qg3 {[%clk
0:00:19.3]} 32... Ne6 {[%clk 0:01:39]} 33. Kh3 {[%clk 0:00:09]} 33... Rh1+
{[%clk 0:01:33.7]} 34. Kg4 {[%clk 0:00:06]} 34... Ng5 {[%clk 0:01:22.2]} 35. Nh4
{[%clk 0:00:02.7]} 35... Nh7 {[%clk 0:01:16.1]} 0-1

[Event "Late-Titled-Tuesday-Blitz-April-02-2024"]
[Site "Chess.com"]
[Date "2024.04.02"]
[Round "5"]
[White "Cluke86"]
[Black "AllStarShark"]
[Result "1/2-1/2"]
[WhiteElo "2331"]
[BlackElo "2522"]
[TimeControl "180+1"]
[EndTime "14:52:29 PDT"]
[Termination "Game drawn by repetition"]

1. e4 {[%clk 0:03:00.9]} 1... c5 {[%clk 0:02:54.5]} 2. Nc3 {[%clk 0:03:00]} 2...
g6 {[%clk 0:02:53.9]} 3. f4 {[%clk 0:03:00.2]} 3... Bg7 {[%clk 0:02:53.9]} 4.
Nf3 {[%clk 0:03:00.6]} 4... d6 {[%clk 0:02:53.7]} 5. a4 {[%clk 0:02:59.5]} 5...
Bg4 {[%clk 0:02:52.9]} 6. Bb5+ {[%clk 0:02:57.4]} 6... Nc6 {[%clk 0:02:49.5]} 7.
h3 {[%clk 0:02:53]} 7... Bxf3 {[%clk 0:02:48.7]} 8. Qxf3 {[%clk 0:02:53.9]} 8...
Rc8 {[%clk 0:02:48.1]} 9. O-O {[%clk 0:02:50.2]} 9... Nf6 {[%clk 0:02:47.4]} 10.
e5 {[%clk 0:02:47.4]} 10... dxe5 {[%clk 0:02:22.5]} 11. fxe5 {[%clk 0:02:48.3]}
11... Qd4+ {[%clk 0:02:21.8]} 12. Kh1 {[%clk 0:02:45.2]} 12... Qxe5 {[%clk
0:02:20.2]} 13. d3 {[%clk 0:02:24.8]} 13... O-O {[%clk 0:02:19.5]} 14. Bxc6
{[%clk 0:02:24.5]} 14... Rxc6 {[%clk 0:02:16.6]} 15. Bf4 {[%clk 0:02:24.7]}
15... Qf5 {[%clk 0:02:11.9]} 16. Rae1 {[%clk 0:02:24.7]} 16... Nh5 {[%clk
0:02:08.9]} 17. Rxe7 {[%clk 0:02:17]} 17... Rf6 {[%clk 0:01:37.2]} 18. Be5
{[%clk 0:01:40.9]} 18... Qxf3 {[%clk 0:01:30.4]} 19. Rxf3 {[%clk 0:01:35.7]}
19... Rxf3 {[%clk 0:01:11.6]} 20. gxf3 {[%clk 0:01:36.6]} 20... Bxe5 {[%clk
0:00:52.3]} 21. Rxe5 {[%clk 0:01:37.5]} 21... Nf4 {[%clk 0:00:52.3]} 22. Rxc5
{[%clk 0:01:29.4]} 22... Nxh3 {[%clk 0:00:50.7]} 23. Rc7 {[%clk 0:01:29.9]}
23... Rb8 {[%clk 0:00:47.2]} 24. Kg2 {[%clk 0:01:24.4]} 24... Nf4+ {[%clk
0:00:45]} 25. Kg3 {[%clk 0:01:23.8]} 25... Ne6 {[%clk 0:00:45]} 26. Rd7 {[%clk
0:01:21.4]} 26... h5 {[%clk 0:00:44.5]} 27. Nd5 {[%clk 0:01:18.8]} 27... Kg7
{[%clk 0:00:43.2]} 28. a5 {[%clk 0:01:12.4]} 28... g5 {[%clk 0:00:41.2]} 29. Ne3
{[%clk 0:01:10]} 29... Kg6 {[%clk 0:00:40.1]} 30. d4 {[%clk 0:01:09.7]} 30... f5
{[%clk 0:00:37.9]} 31. Rd6 {[%clk 0:01:07.1]} 31... f4+ {[%clk 0:00:34.7]} 32.
Kg2 {[%clk 0:01:06.9]} 32... fxe3 {[%clk 0:00:23.4]} 33. Rxe6+ {[%clk
0:01:06.6]} 33... Kf5 {[%clk 0:00:24]} 34. Re5+ {[%clk 0:01:05.1]} 34... Kf4
{[%clk 0:00:22.2]} 35. Re4+ {[%clk 0:01:05.6]} 35... Kf5 {[%clk 0:00:22.1]} 36.
Re5+ {[%clk 0:01:06.3]} 36... Kf4 {[%clk 0:00:21.3]} 37. Re4+ {[%clk 0:01:06.5]}
37... Kf5 {[%clk 0:00:21.4]} 38. Re5+ {[%clk 0:00:51.6]} 1/2-1/2

[Event "Late-Titled-Tuesday-Blitz-April-02-2024"]
[Site "Chess.com"]
[Date "2024.04.02"]
[Round "5"]
[White "KATPAH"]
[Black "cedchass2006"]
[Result "1-0"]
[WhiteElo "2675"]
[BlackElo "2417"]
[TimeControl "180+1"]
[EndTime "14:52:34 PDT"]
[Termination "KATPAH won on time"]

1. e4 {[%clk 0:03:00]} 1... e5 {[%clk 0:02:53.5]} 2. d4 {[%clk 0:02:59.2]} 2...
exd4 {[%clk 0:02:53.1]} 3. c3 {[%clk 0:02:58.7]} 3... d5 {[%clk 0:02:52]} 4.
exd5 {[%clk 0:02:58.3]} 4... Qxd5 {[%clk 0:02:50.1]} 5. cxd4 {[%clk 0:02:58.5]}
5... Nc6 {[%clk 0:02:48.9]} 6. Nf3 {[%clk 0:02:58.8]} 6... Bg4 {[%clk
0:02:45.6]} 7. Be2 {[%clk 0:02:58.7]} 7... O-O-O {[%clk 0:02:40.1]} 8. Nc3
{[%clk 0:02:57.3]} 8... Qd6 {[%clk 0:02:22]} 9. Be3 {[%clk 0:02:48]} 9... Nf6
{[%clk 0:02:19.2]} 10. O-O {[%clk 0:02:46.9]} 10... Bxf3 {[%clk 0:02:05.4]} 11.
Bxf3 {[%clk 0:02:44.8]} 11... Nxd4 {[%clk 0:02:04.5]} 12. Bxd4 {[%clk
0:02:44.2]} 12... Qxd4 {[%clk 0:02:03.7]} 13. Qb3 {[%clk 0:02:44.9]} 13... Qb6
{[%clk 0:02:00.1]} 14. Qxf7 {[%clk 0:02:42]} 14... Bb4 {[%clk 0:01:51.2]} 15. a3
{[%clk 0:02:33.4]} 15... Bd6 {[%clk 0:01:33.6]} 16. Rac1 {[%clk 0:02:22.2]}
16... Rd7 {[%clk 0:01:11.1]} 17. Qc4 {[%clk 0:02:16.1]} 17... a6 {[%clk
0:01:03.6]} 18. Rfd1 {[%clk 0:02:07.9]} 18... Rhd8 {[%clk 0:01:02.4]} 19. Ne4
{[%clk 0:01:56.9]} 19... Nxe4 {[%clk 0:01:01.6]} 20. Qxe4 {[%clk 0:01:57.8]}
20... Kb8 {[%clk 0:00:38.2]} 21. g3 {[%clk 0:01:51.8]} 21... c6 {[%clk
0:00:26.1]} 22. Qxh7 {[%clk 0:01:34.1]} 22... Rf8 {[%clk 0:00:22]} 23. Rd3
{[%clk 0:01:27.7]} 23... Rdf7 {[%clk 0:00:19.2]} 24. Kg2 {[%clk 0:01:18.1]}
24... Bc5 {[%clk 0:00:11.8]} 25. Rc2 {[%clk 0:01:09.4]} 25... g5 {[%clk
0:00:11.5]} 26. Qe4 {[%clk 0:01:06.4]} 26... Ka7 {[%clk 0:00:07.2]} 27. h3
{[%clk 0:01:01.5]} 27... Re7 {[%clk 0:00:05.4]} 28. Qc4 {[%clk 0:01:00.1]} 28...
Re5 {[%clk 0:00:02.5]} 29. Rd7 {[%clk 0:00:54.6]} 29... Be7 {[%clk 0:00:03.1]}
30. Bxc6 {[%clk 0:00:52.5]} 1-0

[Event "Late-Titled-Tuesday-Blitz-April-02-2024"]
[Site "Chess.com"]
[Date "2024.04.02"]
[Round "5"]
[White "TigrVShlyape"]
[Black "NikitaShnadrygin"]
[Result "1/2-1/2"]
[WhiteElo "2943"]
[BlackElo "2672"]
[TimeControl "180+1"]
[EndTime "14:52:35 PDT"]
[Termination "Game drawn by repetition"]

1. d4 {[%clk 0:03:00.9]} 1... d5 {[%clk 0:02:54.6]} 2. Bf4 {[%clk 0:03:00.8]}
2... Nc6 {[%clk 0:02:54.7]} 3. e3 {[%clk 0:02:59.7]} 3... Bf5 {[%clk 0:02:53.4]}
4. a3 {[%clk 0:02:47.6]} 4... e6 {[%clk 0:02:53.4]} 5. c4 {[%clk 0:02:46.9]}
5... Bd6 {[%clk 0:02:53.7]} 6. cxd5 {[%clk 0:02:41.8]} 6... exd5 {[%clk
0:02:50.8]} 7. Bg3 {[%clk 0:02:33.6]} 7... Nf6 {[%clk 0:02:43.4]} 8. Nc3 {[%clk
0:02:27.6]} 8... O-O {[%clk 0:02:42.8]} 9. Nf3 {[%clk 0:02:26.3]} 9... Ne7
{[%clk 0:02:34.4]} 10. Bh4 {[%clk 0:02:23.7]} 10... c6 {[%clk 0:01:49.1]} 11.
Bxf6 {[%clk 0:02:22.7]} 11... gxf6 {[%clk 0:01:50]} 12. Bd3 {[%clk 0:02:21.6]}
12... Bg6 {[%clk 0:01:50.4]} 13. O-O {[%clk 0:02:18]} 13... Kh8 {[%clk
0:01:49.6]} 14. Nh4 {[%clk 0:02:15.8]} 14... Rg8 {[%clk 0:01:48.5]} 15. g3
{[%clk 0:02:15.4]} 15... Qf8 {[%clk 0:01:30.5]} 16. Kh1 {[%clk 0:02:05.9]} 16...
Qh6 {[%clk 0:01:30.3]} 17. Rg1 {[%clk 0:01:42.2]} 17... Rg7 {[%clk 0:01:28]} 18.
Qe2 {[%clk 0:00:16.5]} 18... Rag8 {[%clk 0:01:22.9]} 19. Qf1 {[%clk 0:00:14.9]}
19... Qh5 {[%clk 0:00:57.8]} 20. Be2 {[%clk 0:00:13.9]} 20... Qh6 {[%clk
0:00:57.4]} 21. Bf3 {[%clk 0:00:13]} 21... Nf5 {[%clk 0:00:45.4]} 22. Nxf5
{[%clk 0:00:12.2]} 22... Bxf5 {[%clk 0:00:46.3]} 23. Qe2 {[%clk 0:00:12.2]}
23... Bh3 {[%clk 0:00:40.2]} 24. Bg2 {[%clk 0:00:11.5]} 24... Bg4 {[%clk
0:00:40]} 25. Bf3 {[%clk 0:00:11.8]} 25... Bh3 {[%clk 0:00:40.2]} 26. Bg2 {[%clk
0:00:12.2]} 26... Bg4 {[%clk 0:00:40.3]} 27. Bf3 {[%clk 0:00:12.6]} 27... Bh3
{[%clk 0:00:31.9]} 1/2-1/2

[Event "Late-Titled-Tuesday-Blitz-April-02-2024"]
[Site "Chess.com"]
[Date "2024.04.02"]
[Round "5"]
[White "mightysmasher"]
[Black "KetiTsatsalashvili"]
[Result "1-0"]
[WhiteElo "2590"]
[BlackElo "2421"]
[TimeControl "180+1"]
[EndTime "14:52:35 PDT"]
[Termination "mightysmasher won by resignation"]

1. e4 {[%clk 0:03:00.9]} 1... c5 {[%clk 0:02:58]} 2. c3 {[%clk 0:03:00.6]} 2...
d5 {[%clk 0:02:57.4]} 3. exd5 {[%clk 0:03:01]} 3... Qxd5 {[%clk 0:02:58.3]} 4.
d4 {[%clk 0:03:01.3]} 4... Nf6 {[%clk 0:02:58.7]} 5. Nf3 {[%clk 0:03:01.3]} 5...
Bg4 {[%clk 0:02:57.5]} 6. Nbd2 {[%clk 0:03:00.7]} 6... e6 {[%clk 0:02:55.8]} 7.
Bc4 {[%clk 0:02:59.9]} 7... Qd8 {[%clk 0:02:53.8]} 8. Qb3 {[%clk 0:02:58.8]}
8... Qc7 {[%clk 0:02:48.9]} 9. Bb5+ {[%clk 0:02:56.1]} 9... Nbd7 {[%clk
0:02:42.3]} 10. O-O {[%clk 0:02:54.4]} 10... Be7 {[%clk 0:02:38.6]} 11. h3
{[%clk 0:02:52.8]} 11... Bxf3 {[%clk 0:02:37.3]} 12. Nxf3 {[%clk 0:02:52.5]}
12... O-O {[%clk 0:02:38]} 13. Re1 {[%clk 0:02:52.1]} 13... cxd4 {[%clk
0:02:33.4]} 14. Nxd4 {[%clk 0:02:51.4]} 14... Nc5 {[%clk 0:02:29.5]} 15. Qc2
{[%clk 0:02:49.9]} 15... Rad8 {[%clk 0:02:26.1]} 16. Be3 {[%clk 0:02:45.7]}
16... a6 {[%clk 0:02:25]} 17. Bf1 {[%clk 0:02:44.5]} 17... Nd5 {[%clk
0:02:18.9]} 18. Bd2 {[%clk 0:02:32.5]} 18... Bf6 {[%clk 0:02:13.6]} 19. Nf3
{[%clk 0:02:24.3]} 19... b6 {[%clk 0:01:59.5]} 20. Bg5 {[%clk 0:02:21]} 20... b5
{[%clk 0:01:54.9]} 21. Rad1 {[%clk 0:02:17.4]} 21... h6 {[%clk 0:01:42.5]} 22.
Bxf6 {[%clk 0:02:14]} 22... Nxf6 {[%clk 0:01:42.1]} 23. Nd4 {[%clk 0:02:11.6]}
23... Nce4 {[%clk 0:01:37.4]} 24. Rxe4 {[%clk 0:01:58.9]} 24... Nxe4 {[%clk
0:01:36.8]} 25. Qxe4 {[%clk 0:01:58.4]} 25... e5 {[%clk 0:01:31]} 26. Bd3 {[%clk
0:01:57.7]} 26... g6 {[%clk 0:01:17.2]} 27. Nf3 {[%clk 0:01:53.9]} 27... Rfe8
{[%clk 0:01:14.7]} 28. Bc2 {[%clk 0:01:50.1]} 28... Rxd1+ {[%clk 0:01:11.2]} 29.
Bxd1 {[%clk 0:01:51]} 29... Qc4 {[%clk 0:01:00.8]} 30. Qxc4 {[%clk 0:01:41.8]}
30... bxc4 {[%clk 0:01:01.7]} 31. Ba4 {[%clk 0:01:41.7]} 31... Rb8 {[%clk
0:01:01.3]} 32. b3 {[%clk 0:01:41]} 32... e4 {[%clk 0:01:00]} 33. Ne5 {[%clk
0:01:39.2]} 33... cxb3 {[%clk 0:00:59.7]} 34. Bxb3 {[%clk 0:01:38.9]} 34... Kg7
{[%clk 0:00:58.1]} 35. Kf1 {[%clk 0:01:33.5]} 35... f6 {[%clk 0:00:55.7]} 36.
Nc4 {[%clk 0:01:27.1]} 36... f5 {[%clk 0:00:55.1]} 37. Ke2 {[%clk 0:01:26.7]}
37... Kf6 {[%clk 0:00:55.4]} 38. Ne3 {[%clk 0:01:26.5]} 38... Ke5 {[%clk
0:00:55]} 39. Nc4+ {[%clk 0:01:26.6]} 39... Kf6 {[%clk 0:00:54.9]} 40. f3 {[%clk
0:01:26.2]} 40... exf3+ {[%clk 0:00:53.6]} 41. Kxf3 {[%clk 0:01:26.3]} 41... g5
{[%clk 0:00:53.4]} 42. Ne3 {[%clk 0:01:25.4]} 42... Ke5 {[%clk 0:00:50.5]} 43.
Nc4+ {[%clk 0:01:22.9]} 43... Kf6 {[%clk 0:00:50]} 44. g4 {[%clk 0:01:23.1]}
44... f4 {[%clk 0:00:48.8]} 45. Nd2 {[%clk 0:01:19]} 45... Rd8 {[%clk
0:00:44.5]} 46. Ne4+ {[%clk 0:01:18.6]} 46... Ke5 {[%clk 0:00:44.9]} 47. Nf2
{[%clk 0:01:10.5]} 47... Rd2 {[%clk 0:00:40.8]} 48. c4 {[%clk 0:01:09.1]} 48...
Kd4 {[%clk 0:00:39.2]} 49. c5 {[%clk 0:01:05.2]} 49... Kxc5 {[%clk 0:00:39.1]}
50. Ne4+ {[%clk 0:01:04.8]} 1-0

[Event "Late-Titled-Tuesday-Blitz-April-02-2024"]
[Site "Chess.com"]
[Date "2024.04.02"]
[Round "5"]
[White "romulocardoso"]
[Black "Blackwhite017"]
[Result "1-0"]
[WhiteElo "2404"]
[BlackElo "2064"]
[TimeControl "180+1"]
[EndTime "14:52:38 PDT"]
[Termination "romulocardoso won on time"]

1. e4 {[%clk 0:03:00.9]} 1... c5 {[%clk 0:02:56.1]} 2. Nf3 {[%clk 0:03:00.3]}
2... Nc6 {[%clk 0:02:56.1]} 3. d4 {[%clk 0:02:57.8]} 3... cxd4 {[%clk
0:02:55.9]} 4. Nxd4 {[%clk 0:02:58.4]} 4... g6 {[%clk 0:02:55.7]} 5. Be3 {[%clk
0:02:56.8]} 5... Bg7 {[%clk 0:02:55.5]} 6. Nc3 {[%clk 0:02:57.3]} 6... Nf6
{[%clk 0:02:55.6]} 7. Bc4 {[%clk 0:02:56.8]} 7... O-O {[%clk 0:02:53.5]} 8. f3
{[%clk 0:02:56.5]} 8... Qb6 {[%clk 0:02:52.4]} 9. Qd2 {[%clk 0:02:02.9]} 9...
Nxe4 {[%clk 0:02:48.6]} 10. Nxc6 {[%clk 0:01:47.1]} 10... Bxc3 {[%clk
0:00:20.7]} 11. Nxe7+ {[%clk 0:01:22.7]} 11... Kh8 {[%clk 0:00:20.4]} 12. Qxc3+
{[%clk 0:01:23.3]} 12... Nxc3 {[%clk 0:00:20]} 13. Bxb6 {[%clk 0:01:23.1]} 13...
axb6 {[%clk 0:00:18]} 14. bxc3 {[%clk 0:01:03.4]} 14... Re8 {[%clk 0:00:18.1]}
15. Kf2 {[%clk 0:01:04.1]} 15... Rxe7 {[%clk 0:00:18.4]} 16. Rhe1 {[%clk
0:01:04.8]} 16... Rxe1 {[%clk 0:00:17.6]} 17. Rxe1 {[%clk 0:01:05.5]} 17... d5
{[%clk 0:00:15.3]} 18. Bxd5 {[%clk 0:01:04.8]} 18... Bf5 {[%clk 0:00:12.5]} 19.
Bxf7 {[%clk 0:01:03.3]} 19... Kg7 {[%clk 0:00:10.2]} 20. Bd5 {[%clk 0:01:02.6]}
20... Rc8 {[%clk 0:00:09.6]} 21. Re7+ {[%clk 0:00:59.8]} 21... Kf6 {[%clk
0:00:09.3]} 22. Rf7+ {[%clk 0:01:00.3]} 22... Ke5 {[%clk 0:00:09]} 23. c4 {[%clk
0:01:00.2]} 23... Kd4 {[%clk 0:00:08.4]} 24. Rxb7 {[%clk 0:01:00.1]} 24... Bxc2
{[%clk 0:00:05.9]} 25. Rxb6 {[%clk 0:00:58.8]} 25... Rc5 {[%clk 0:00:05.3]} 26.
Rb7 {[%clk 0:00:57.6]} 26... h5 {[%clk 0:00:04.7]} 27. Re7 {[%clk 0:00:56.6]}
27... Ra5 {[%clk 0:00:03.4]} 28. Re2 {[%clk 0:00:54.9]} 28... Rxa2 {[%clk
0:00:01.8]} 29. Be4 {[%clk 0:00:55.4]} 1-0

[Event "Late-Titled-Tuesday-Blitz-April-02-2024"]
[Site "Chess.com"]
[Date "2024.04.02"]
[Round "5"]
[White "Mops_2004"]
[Black "anasta10"]
[Result "1-0"]
[WhiteElo "2805"]
[BlackElo "2580"]
[TimeControl "180+1"]
[EndTime "14:52:40 PDT"]
[Termination "Mops_2004 won by resignation"]

1. g3 {[%clk 0:03:00.9]} 1... Nf6 {[%clk 0:02:59.6]} 2. Bg2 {[%clk 0:03:01.3]}
2... g6 {[%clk 0:03:00.3]} 3. d4 {[%clk 0:03:01.2]} 3... Bg7 {[%clk 0:03:01]} 4.
e4 {[%clk 0:03:01.8]} 4... d6 {[%clk 0:03:00.6]} 5. Nc3 {[%clk 0:03:02.4]} 5...
O-O {[%clk 0:03:01.1]} 6. Nf3 {[%clk 0:03:02.9]} 6... Nc6 {[%clk 0:03:01.5]} 7.
d5 {[%clk 0:03:02.8]} 7... Nb8 {[%clk 0:03:01]} 8. O-O {[%clk 0:03:02.5]} 8...
a5 {[%clk 0:03:01.6]} 9. a4 {[%clk 0:03:01.5]} 9... Na6 {[%clk 0:03:00.7]} 10.
Re1 {[%clk 0:02:59.9]} 10... Nc5 {[%clk 0:03:01.1]} 11. e5 {[%clk 0:02:53.1]}
11... dxe5 {[%clk 0:02:58.4]} 12. Nxe5 {[%clk 0:02:52.3]} 12... Bf5 {[%clk
0:02:42.6]} 13. g4 {[%clk 0:02:46.2]} 13... Bc8 {[%clk 0:02:35.9]} 14. h3 {[%clk
0:02:45.7]} 14... e6 {[%clk 0:01:51.4]} 15. Be3 {[%clk 0:02:33.8]} 15... Qe7
{[%clk 0:01:31.5]} 16. Qf3 {[%clk 0:01:52.8]} 16... Nxd5 {[%clk 0:00:50.2]} 17.
Nxd5 {[%clk 0:01:49.4]} 17... exd5 {[%clk 0:00:50.5]} 18. Qxd5 {[%clk
0:01:49.6]} 18... Na6 {[%clk 0:00:25.8]} 19. Nd3 {[%clk 0:01:32.3]} 19... Qf6
{[%clk 0:00:06.5]} 20. Qxa5 {[%clk 0:01:27.6]} 20... b6 {[%clk 0:00:06.2]} 21.
Qb5 {[%clk 0:01:10.6]} 21... Rb8 {[%clk 0:00:06.4]} 22. Bg5 {[%clk 0:01:11.2]}
22... Qd6 {[%clk 0:00:05.2]} 23. Be7 {[%clk 0:01:11.1]} 23... Qd4 {[%clk
0:00:04.5]} 24. c3 {[%clk 0:01:09.1]} 24... Qd7 {[%clk 0:00:03]} 25. Bxf8 {[%clk
0:01:08.3]} 25... Bxf8 {[%clk 0:00:02.8]} 26. Ne5 {[%clk 0:01:03.3]} 26... Qe6
{[%clk 0:00:02.2]} 27. Nc6 {[%clk 0:01:03.1]} 27... Qd6 {[%clk 0:00:01.6]} 28.
Nxb8 {[%clk 0:01:02.4]} 28... Nxb8 {[%clk 0:00:02.5]} 29. Rad1 {[%clk
0:01:02.2]} 29... Qf4 {[%clk 0:00:02.7]} 30. Re8 {[%clk 0:00:57.6]} 30... Bd7
{[%clk 0:00:03]} 31. Rxd7 {[%clk 0:00:50.2]} 31... Nxd7 {[%clk 0:00:03.1]} 32.
Qxd7 {[%clk 0:00:50.1]} 32... Qc1+ {[%clk 0:00:04]} 33. Bf1 {[%clk 0:00:50.5]}
1-0

[Event "Late-Titled-Tuesday-Blitz-April-02-2024"]
[Site "Chess.com"]
[Date "2024.04.02"]
[Round "5"]
[White "Kotlyar_K"]
[Black "TanitoluwaAps116"]
[Result "1-0"]
[WhiteElo "2603"]
[BlackElo "2793"]
[TimeControl "180+1"]
[EndTime "14:52:41 PDT"]
[Termination "Kotlyar_K won on time"]

1. e4 {[%clk 0:03:00.9]} 1... c5 {[%clk 0:02:34.5]} 2. Nf3 {[%clk 0:02:59.6]}
2... e6 {[%clk 0:02:34.1]} 3. d4 {[%clk 0:02:59.5]} 3... cxd4 {[%clk 0:02:35]}
4. Nxd4 {[%clk 0:03:00]} 4... Nf6 {[%clk 0:02:34.9]} 5. Nc3 {[%clk 0:02:59.3]}
5... Nc6 {[%clk 0:02:33.3]} 6. Ndb5 {[%clk 0:02:45.1]} 6... d6 {[%clk
0:02:33.2]} 7. Bf4 {[%clk 0:02:37.5]} 7... e5 {[%clk 0:02:32.7]} 8. Bg5 {[%clk
0:02:38.1]} 8... a6 {[%clk 0:02:32.3]} 9. Na3 {[%clk 0:02:38.3]} 9... b5 {[%clk
0:02:28.6]} 10. Nd5 {[%clk 0:02:38.5]} 10... Be7 {[%clk 0:02:27.9]} 11. Bxf6
{[%clk 0:02:38.8]} 11... Bxf6 {[%clk 0:02:28.2]} 12. c3 {[%clk 0:02:38.4]} 12...
Rb8 {[%clk 0:02:28.1]} 13. Nc2 {[%clk 0:02:32.3]} 13... Bg5 {[%clk 0:02:27.7]}
14. a4 {[%clk 0:02:26.3]} 14... bxa4 {[%clk 0:02:24.9]} 15. Ncb4 {[%clk
0:02:26.4]} 15... Nxb4 {[%clk 0:02:25.2]} 16. Nxb4 {[%clk 0:02:19.4]} 16... Bd7
{[%clk 0:01:30.1]} 17. Bxa6 {[%clk 0:02:08.3]} 17... O-O {[%clk 0:01:23.8]} 18.
O-O {[%clk 0:02:05.3]} 18... Rb6 {[%clk 0:01:07.2]} 19. Bd3 {[%clk 0:01:59.2]}
19... g6 {[%clk 0:00:53.5]} 20. Bc2 {[%clk 0:01:53]} 20... Qa8 {[%clk
0:00:42.2]} 21. Bxa4 {[%clk 0:01:36.8]} 21... Bxa4 {[%clk 0:00:40.7]} 22. Rxa4
{[%clk 0:01:37.7]} 22... Qb7 {[%clk 0:00:31.4]} 23. Qg4 {[%clk 0:01:29.7]} 23...
h6 {[%clk 0:00:23.4]} 24. Rfa1 {[%clk 0:01:22.9]} 24... Rb5 {[%clk 0:00:11.3]}
25. h4 {[%clk 0:01:13.5]} 25... Bd8 {[%clk 0:00:05.4]} 26. h5 {[%clk 0:01:09.2]}
26... g5 {[%clk 0:00:02.8]} 27. Ra7 {[%clk 0:01:00.2]} 27... Qb8 {[%clk
0:00:01.5]} 28. Nc6 {[%clk 0:00:44.4]} 28... Qb7 {[%clk 0:00:01.4]} 29. Rxb7
{[%clk 0:00:43.4]} 1-0

[Event "Late-Titled-Tuesday-Blitz-April-02-2024"]
[Site "Chess.com"]
[Date "2024.04.02"]
[Round "5"]
[White "fmcabralis"]
[Black "grandcoach"]
[Result "0-1"]
[WhiteElo "2394"]
[BlackElo "2243"]
[TimeControl "180+1"]
[EndTime "14:52:42 PDT"]
[Termination "grandcoach won by resignation"]

1. e4 {[%clk 0:03:00.9]} 1... c5 {[%clk 0:02:57.4]} 2. Nf3 {[%clk 0:03:00.9]}
2... Nc6 {[%clk 0:02:56.9]} 3. d4 {[%clk 0:03:01.1]} 3... cxd4 {[%clk
0:02:57.5]} 4. Nxd4 {[%clk 0:03:02]} 4... e5 {[%clk 0:02:57.4]} 5. Nb5 {[%clk
0:03:01.6]} 5... d6 {[%clk 0:02:58]} 6. N1c3 {[%clk 0:03:02]} 6... a6 {[%clk
0:02:57.9]} 7. Na3 {[%clk 0:03:02.4]} 7... b5 {[%clk 0:02:58.4]} 8. Nd5 {[%clk
0:03:03]} 8... Nge7 {[%clk 0:02:58.4]} 9. c4 {[%clk 0:03:01.2]} 9... Nxd5 {[%clk
0:02:55.3]} 10. Qxd5 {[%clk 0:02:36.5]} 10... Bd7 {[%clk 0:02:52.8]} 11. cxb5
{[%clk 0:02:31.8]} 11... Nd4 {[%clk 0:02:45.9]} 12. bxa6 {[%clk 0:02:21.6]}
12... Bc6 {[%clk 0:02:26]} 13. Qc4 {[%clk 0:02:12.2]} 13... Bxe4 {[%clk
0:02:17.5]} 14. Be3 {[%clk 0:02:00]} 14... d5 {[%clk 0:02:17.1]} 15. Qa4+ {[%clk
0:01:56.7]} 15... Qd7 {[%clk 0:02:00.6]} 16. Bxd4 {[%clk 0:01:48.8]} 16... Qxa4
{[%clk 0:01:57.3]} 17. Bb5+ {[%clk 0:01:48.6]} 17... Qxb5 {[%clk 0:01:52.5]} 18.
Nxb5 {[%clk 0:01:49.5]} 18... Bb4+ {[%clk 0:01:49.2]} 19. Bc3 {[%clk 0:01:41.6]}
19... Bxc3+ {[%clk 0:01:48.7]} 20. bxc3 {[%clk 0:01:32.6]} 20... Kd7 {[%clk
0:01:44.5]} 21. a7 {[%clk 0:01:11.9]} 21... Kc6 {[%clk 0:01:19.5]} 22. a4 {[%clk
0:01:11.2]} 22... Bd3 {[%clk 0:01:18.4]} 23. Kd2 {[%clk 0:01:08.3]} 23... Bc4
{[%clk 0:01:08.3]} 24. Rhb1 {[%clk 0:01:01]} 24... Rhd8 {[%clk 0:01:06.6]} 25.
Ke3 {[%clk 0:00:48.7]} 25... Rd7 {[%clk 0:01:02.7]} 26. g3 {[%clk 0:00:47.6]}
26... Rb7 {[%clk 0:00:46.9]} 27. f4 {[%clk 0:00:36.6]} 27... f6 {[%clk
0:00:40.8]} 28. fxe5 {[%clk 0:00:29.9]} 28... fxe5 {[%clk 0:00:41.7]} 29. Rb4
{[%clk 0:00:19.1]} 29... Bxb5 {[%clk 0:00:40.3]} 30. axb5+ {[%clk 0:00:17.9]}
30... Rxb5 {[%clk 0:00:40.9]} 31. Ra6+ {[%clk 0:00:14]} 31... Kc5 {[%clk
0:00:39.8]} 32. Rxb5+ {[%clk 0:00:13.2]} 32... Kxb5 {[%clk 0:00:40.7]} 33. Rc6
{[%clk 0:00:13.7]} 33... Kxc6 {[%clk 0:00:40.4]} 0-1